bitfinex-derivatives/quotes_ETHF0:USTF0_20240826
["timestamp","ask_amount","ask_price","bid_price","bid_amount"]
[1724649655698,1.31,2749.1,2748.9,1.10885]
[1724649656086,0.3787,2749.0,2748.9,1.10885]
[1724649656296,0.3787,2749.0,2748.9,0.74834017]
[1724649657188,0.3787,2749.0,2748.9,0.36254017]
[1724649657400,0.3787,2749.0,2748.9,0.00314017]
[1724649658297,0.3787,2749.0,2748.9,0.36680017]
[1724649658994,0.00375447,2749.1,2749.0,0.36364]
[1724649659192,0.00375447,2749.1,2749.0,4.38844]
[1724649659401,0.00375447,2749.1,2749.0,5.69844]
[1724649664599,0.00375447,2749.1,2749.0,13.90624]
[1724649664790,2.0436,2749.9,2749.5,1.67357]
[1724649664991,0.36354,2749.8,2749.5,1.31]
[1724649665195,0.36354,2749.8,2749.4,1.67358]
[1724649665400,1.31,2749.7,2749.4,0.36358]
[1724649665601,1.31,2749.7,2749.3,0.3636]
[1724649665800,1.31316302,2749.7,2749.3,0.3636]
[1724649666402,1.31,2749.6,2749.3,0.3636]
[1724649666797,0.7192,2749.5,2749.3,0.3636]
[1724649667402,0.7192,2749.5,2749.0,3.595]
[1724649667403,1.31,2749.4,2749.0,5.26864]
[1724649667604,1.67359,2749.4,2749.0,5.26864]
[1724649669304,1.67359,2749.4,2749.1,1.67363]
[1724649669305,0.36359,2749.4,2749.1,1.67363]
[1724649670203,2.39278,2749.5,2749.1,1.67363]
[1724649670604,2.39278,2749.5,2749.2,0.36361]
[1724649670799,2.39278,2749.5,2749.2,0.72831]
[1724649671596,2.39278,2749.5,2749.3,1.31]
[1724649671597,1.08278,2749.5,2749.3,1.31]
[1724649672109,1.08278,2749.5,2749.4,0.3711]
[1724649672306,0.7192,2749.5,2749.4,0.3711]
[1724649675312,0.7192,2749.5,2749.3,1.31]
[1724649677507,0.7192,2749.5,2749.3,1.6736]
[1724649678009,0.7192,2749.5,2749.3,1.31]
[1724649678716,2.39278,2749.5,2749.2,0.3647]
[1724649679011,1.31,2749.4,2749.1,0.36362]
[1724649680209,1.31,2749.4,2749.2,0.36361]
[1724649681601,1.31,2749.4,2749.3,0.3636]
[1724649681801,0.7192,2749.5,2749.4,0.36359]
[1724649683613,0.3544,2749.5,2749.4,0.36359]
[1724649684505,0.3544,2749.5,2749.3,2.05639]
[1724649684705,0.3544,2749.5,2749.3,1.6928]
[1724649684906,0.3544,2749.5,2749.3,2.0564]
[1724649685307,1.6644,2749.5,2749.2,0.95271517]
[1724649685539,1.31,2749.3,2749.1,0.95271517]
[1724649685816,0.3623,2749.2,2749.1,0.95271517]
[1724649686315,1.6723,2749.2,2749.1,0.95271517]
[1724649686522,1.6723,2749.2,2749.0,0.95271517]
[1724649686811,0.3633,2749.1,2749.0,0.95271517]
[1724649687412,0.72693,2749.1,2749.0,0.95271517]
[1724649687601,2.03693,2749.1,2748.9,0.95585534]
[1724649688109,0.72693,2749.1,2748.9,0.95585534]
[1724649688707,0.36364,2749.0,2748.9,0.00314017]
[1724649688917,4.00124,2749.0,2748.9,0.00314017]
[1724649689807,3.6376,2749.0,2748.9,0.00314017]
[1724649690916,0.3633,2749.1,2748.9,0.00314017]
[1724649692614,0.3633,2749.1,2749.0,0.36364]
[1724649692817,0.3633,2749.1,2749.0,0.7267]
[1724649696625,0.3633,2749.1,2749.0,0.3673]
[1724649696826,0.3633,2749.1,2748.9,0.00314017]
[1724649698611,0.72693,2749.1,2748.9,0.00314017]
[1724649699020,0.3633,2749.1,2748.9,0.00314017]
[1724649699518,0.3633,2749.1,2748.9,0.36680017]
[1724649700117,0.3633,2749.1,2748.9,0.00314017]
[1724649702920,0.3633,2749.1,2748.9,0.36680017]
[1724649705325,0.3633,2749.1,2748.9,0.00314017]
[1724649705526,0.3633,2749.1,2748.9,0.36679017]
[1724649707223,0.72693,2749.1,2748.9,0.00314017]
[1724649707730,0.3633,2749.1,2748.9,0.00314017]
[1724649708225,3.2078,2749.2,2749.1,0.36363]
[1724649708424,0.00316302,2749.7,2749.2,0.36361]
[1724649708425,1.31,2749.4,2749.2,0.36361]
[1724649708619,1.31,2749.4,2749.0,1.6709]
[1724649708620,0.3582,2749.5,2749.3,1.31]
[1724649708823,0.3582,2749.5,2749.3,0.3636]
[1724649709623,2.0324,2749.4,2749.0,1.31361517]
[1724649709823,1.31,2749.3,2749.0,0.3609]
[1724649710224,1.67361,2749.3,2749.0,0.3609]
[1724649710928,1.67361,2749.3,2748.9,4.87690534]
[1724649711128,1.31,2749.1,2748.9,4.16365534]
[1724649711525,0.3733,2749.0,2748.9,1.31951534]
[1724649712030,0.3733,2749.0,2748.9,6.77601989]
[1724649712424,0.3733,2749.0,2748.9,3.13841989]
[1724649712623,0.3733,2749.0,2748.9,2.18570378]
[1724649714028,0.3733,2749.0,2748.9,3.13767484]
[1724649714226,0.3733,2749.0,2748.9,1.31877123]
[1724649716425,0.3733,2749.0,2748.9,2.18573308]
[1724649716822,3.9302,2749.4,2748.9,2.18573308]
[1724649716823,3.5666,2749.4,2748.9,6.88846605]
[1724649717022,0.3588,2749.4,2749.3,0.3636]
[1724649717457,0.3532,2749.5,2749.4,0.36359]
[1724649717633,0.3532,2749.5,2749.3,3.6376]
[1724649717634,0.00316302,2749.7,2749.6,0.36356]
[1724649718931,1.31316302,2749.7,2749.6,0.36356]
[1724649719630,0.00545663,2750.1,2750.0,0.36351]
[1724649719831,0.00545663,2750.1,2750.0,1.67351]
[1724649720133,0.00545663,2750.1,2750.0,4.95062697]
[1724649720428,0.00545663,2750.1,2750.0,3.99951]
[1724649720729,0.00872713,2750.1,2750.0,3.636]
[1724649720936,0.00872713,2750.1,2750.0,3.99951]
[1724649721431,0.00872713,2750.1,2750.0,3.636]
[1724649721637,0.00872713,2750.1,2749.9,0.36352]
[1724649722635,0.00872713,2750.1,2749.8,0.36353]
[1724649723937,0.00872713,2750.1,2749.9,0.36352]
[1724649724128,0.00872713,2750.1,2750.0,0.36351]
[1724649724437,0.00872713,2750.1,2749.9,0.36351]
[1724649727628,0.00872713,2750.1,2749.6,0.3836]
[1724649727827,0.00872713,2750.1,2749.6,0.36356]
[1724649727828,0.36352,2750.0,2749.6,0.36356]
[1724649728132,0.36353,2749.9,2749.5,0.36358]
[1724649728328,0.3759,2749.8,2749.5,0.36358]
[1724649728528,0.3769,2749.7,2749.5,0.36358]
[1724649732440,0.3759,2749.8,2749.6,0.36356]
[1724649732629,0.3759,2749.8,2749.7,0.3734]
[1724649732829,0.3759,2749.8,2749.7,0.738]
[1724649734640,0.3759,2749.8,2749.5,0.36357]
[1724649735336,0.3759,2749.8,2749.6,0.3856]
[1724649735843,0.3759,2749.8,2749.6,0.74916]
[1724649737745,0.3759,2749.8,2749.6,0.3856]
[1724649741947,0.3759,2749.8,2749.7,3.2078]
[1724649742144,0.3506,2750.0,2749.7,3.2078]
[1724649742340,0.3506,2750.0,2749.9,0.36352]
[1724649742743,0.00872713,2750.1,2749.9,0.36352]
[1724649743450,0.00872713,2750.1,2749.8,0.36353]
[1724649747649,0.00872713,2750.1,2749.7,0.3546]
[1724649747953,0.00872713,2750.1,2749.8,0.36353]
[1724649748649,0.36351,2750.0,2749.6,3.2078]
[1724649748846,0.3761,2749.9,2749.6,0.3732]
[1724649749155,0.3761,2749.9,2749.6,0.73676]
[1724649750547,0.00872713,2750.1,2749.7,0.36355]
[1724649750548,0.37222713,2750.1,2749.7,0.36355]
[1724649751547,0.361,2750.0,2749.7,0.36355]
[1724649752544,0.361,2750.0,2749.8,0.36353]
[1724649752948,0.72452,2750.0,2749.6,0.73675]
[1724649754252,0.72452,2750.0,2749.7,0.36355]
[1724649754847,0.72452,2750.0,2749.6,3.57136]
[1724649756247,0.72452,2750.0,2749.7,0.36355]
[1724649757149,0.361,2750.0,2749.8,0.36354]
[1724649757658,0.361,2750.0,2749.9,0.3663]
[1724649758152,0.361,2750.0,2749.6,4.15891697]
[1724649758153,0.361,2750.0,2749.7,0.36354]
[1724649758349,0.72451,2750.0,2749.7,0.36354]
[1724649760649,0.72451,2750.0,2749.5,1.68071697]
[1724649760650,0.36354,2749.8,2749.5,1.67798697]
[1724649760856,0.3565,2749.7,2749.5,0.36357]
[1724649761253,0.3534,2749.6,2749.5,0.36357]
[1724649761456,0.3534,2749.6,2749.5,1.31468697]
[1724649763460,0.3534,2749.6,2749.5,3.13328539]
[1724649763850,0.3534,2749.6,2749.5,0.95111697]
[1724649765452,0.3534,2749.6,2749.5,2.76971051]
[1724649766358,0.3534,2749.6,2749.5,3.13329051]
[1724649766559,0.3534,2749.6,2749.5,2.76971051]
[1724649768560,0.3534,2749.6,2749.4,3.10237297]
[1724649768879,0.3534,2749.6,2749.5,1.81856358]
[1724649769460,0.3534,2749.6,2749.5,0.95274959]
[1724649769664,0.3534,2749.6,2749.5,2.77137395]
[1724649770562,0.3534,2749.6,2749.5,1.81862436]
[1724649770758,0.3534,2749.6,2749.5,3.24741733]
[1724649770958,0.3534,2749.6,2749.5,3.61099733]
[1724649773063,0.3534,2749.6,2749.5,3.61093574]
[1724649773658,0.3534,2749.6,2749.5,3.61093781]
[1724649774855,0.3534,2749.6,2749.5,2.77176194]
[1724649775059,0.3534,2749.6,2749.5,0.9531971]
[1724649776065,2.02696,2749.6,2749.4,0.9531971]
[1724649780463,2.02696,2749.6,2749.3,2.6267871]
[1724649780657,2.02696,2749.6,2749.4,0.9531971]
[1724649781179,1.6634,2749.6,2749.4,1.3167871]
[1724649782367,1.6634,2749.6,2749.4,0.36359]
[1724649782565,1.6634,2749.6,2749.4,1.3167871]
[1724649782759,1.31,2749.5,2749.4,0.36359]
[1724649783165,1.31,2749.5,2749.3,1.3167971]
[1724649783166,4.9468,2749.5,2749.3,1.3167971]
[1724649783366,1.31,2749.5,2749.3,1.3167971]
[1724649784466,1.6634,2749.6,2749.4,0.36359]
[1724649784971,5.66377,2749.6,2749.3,1.3167971]
[1724649785270,2.02697,2749.6,2749.3,1.3167971]
[1724649788660,1.31,2749.4,2749.2,0.9531971]
[1724649788867,0.74951,2749.3,2749.0,1.3168371]
[1724649789069,1.31,2749.2,2749.0,1.3168371]
[1724649789469,1.31,2749.2,2749.1,0.36363]
[1724649790163,1.31,2749.2,2749.0,1.3168371]
[1724649790364,1.31,2749.2,2749.0,0.36364]
[1724649791274,1.31,2749.2,2748.9,0.38354017]
[1724649791472,0.36363,2749.1,2748.9,0.74720017]
[1724649791971,0.3641,2749.0,2748.9,0.74720017]
[1724649800774,0.3641,2749.0,2748.9,0.38354017]
[1724649801373,0.72774,2749.0,2748.9,0.38354017]
[1724649801577,2.03774,2749.0,2748.9,0.00314017]
[1724649801781,1.6741,2749.0,2748.9,0.00314017]
[1724649802682,2.03774,2749.0,2748.9,0.00314017]
[1724649805384,0.36364,2749.1,2748.9,0.00314017]
[1724649805589,0.36364,2749.1,2748.9,2.06100017]
[1724649807686,0.36363,2749.1,2748.9,2.06100017]
[1724649807884,0.36363,2749.1,2748.9,1.69734017]
[1724649808612,0.36363,2749.1,2748.9,2.06100017]
[1724649809899,0.36363,2749.1,2748.9,0.75100017]
[1724649810097,1.67359,2749.4,2748.9,1.69734017]
[1724649810393,1.31,2749.4,2749.1,0.36362]
[1724649810598,1.67359,2749.4,2749.1,0.36362]
[1724649810795,1.67361,2749.3,2749.0,0.36364]
[1724649811200,0.3668,2749.2,2749.0,0.36364]
[1724649812095,0.3668,2749.2,2749.1,0.3745]
[1724649812789,0.36364,2749.1,2748.9,1.69734017]
[1724649812997,1.67364,2749.1,2748.9,0.76184017]
[1724649813495,1.67364,2749.1,2748.9,0.38734017]
[1724649813795,2.02644,2749.1,2748.9,0.38734017]
[1724649817501,1.6628,2749.1,2748.9,0.38734017]
[1724649817797,0.3668,2749.2,2749.1,0.36363]
[1724649818004,3.2078,2749.5,2749.1,0.36363]
[1724649818005,0.74249,2749.4,2749.1,1.67363]
[1724649818309,2.05249,2749.4,2749.0,0.72254]
[1724649819502,0.36361,2749.3,2749.0,0.72254]
[1724649820800,1.67362,2749.2,2749.0,0.3589]
[1724649821209,1.31,2749.2,2749.0,0.3589]
[1724649821798,1.67362,2749.2,2749.0,0.3589]
[1724649822010,0.3635,2749.1,2749.0,0.3589]
[1724649822400,0.72713,2749.1,2749.0,0.3589]
[1724649822899,2.03713,2749.1,2749.0,0.3589]
[1724649823599,2.03713,2749.1,2748.9,0.38734017]
[1724649824704,0.36364,2749.0,2748.9,0.00314017]
[1724649824905,0.75054,2749.0,2748.9,0.00314017]
[1724649827613,0.3869,2749.0,2748.9,0.00314017]
[1724649828621,0.75054,2749.0,2748.9,0.00314017]
[1724649829612,0.3869,2749.0,2748.9,0.00314017]
[1724649829816,0.75054,2749.0,2748.9,0.00314017]
[1724649833211,0.75054,2749.0,2748.9,0.95633727]
[1724649835515,0.75054,2749.0,2748.9,0.00314017]
[1724649836317,3.95834,2749.0,2748.9,0.00314017]
[1724649841116,0.75054,2749.0,2748.9,0.00314017]
[1724649841316,0.36367,2748.8,2748.7,0.00545663]
[1724649841513,1.67367,2748.8,2748.7,0.00545663]
[1724649842408,1.67367,2748.8,2748.7,0.00806325]
[1724649843411,1.31,2748.8,2748.7,0.00806325]
[1724649843917,1.661,2748.8,2748.7,0.00806325]
[1724649847049,2.02467,2748.8,2748.7,0.00806325]
[1724649871339,2.93385,2748.8,2748.7,0.00806325]
[1724649889250,6.14165,2748.8,2748.7,0.00806325]
[1724649893952,3.92247,2748.8,2748.7,0.00806325]
[1724649894457,5.23247,2748.8,2748.7,0.00806325]
[1724649903853,2.02467,2748.8,2748.7,0.00806325]
[1724649917560,0.3637,2748.6,2748.4,0.9531971]
[1724649917760,0.3637,2748.6,2748.3,0.9531971]
[1724649917761,0.3523,2748.5,2748.3,0.9531971]
[1724649918063,0.36374,2748.3,2748.2,1.3081971]
[1724649918262,0.36374,2748.3,2748.2,0.355]
[1724649918664,0.36374,2748.3,2748.2,0.35855595]
[1724649919275,0.36374,2748.3,2748.2,0.00355595]
[1724649921077,0.36373,2748.4,2748.2,0.00355595]
[1724649921265,1.67373,2748.4,2748.2,0.00355595]
[1724649921962,0.00545663,2748.5,2748.2,0.36729595]
[1724649922160,1.67916663,2748.5,2748.3,0.3787]
[1724649922358,1.67916663,2748.5,2748.4,0.3604]
[1724649924361,0.36374,2748.3,2748.2,0.00355595]
[1724649924561,1.67374,2748.3,2748.2,0.00355595]
[1724649932071,5.31214,2748.3,2748.2,0.00355595]
[1724649933384,0.36376,2748.1,2748.0,0.00363774]
[1724649933586,0.36382,2747.7,2747.6,0.3548]
[1724649934177,1.31,2747.8,2747.6,3.994]
[1724649934178,1.67381,2747.8,2747.6,3.994]
[1724649934479,1.67653019,2747.8,2747.6,0.35843269]
[1724649935682,0.36382,2747.7,2747.6,0.35843269]
[1724649935878,1.64937,2747.7,2747.6,0.00363269]
[1724649936093,0.36388,2747.2,2747.0,0.3524]
[1724649936271,1.31,2747.1,2747.0,0.3524]
[1724649937075,1.31,2747.1,2747.0,0.35548637]
[1724649938704,1.6739,2747.1,2747.0,0.00308637]
[1724649938980,1.31,2747.1,2747.0,0.00308637]
[1724649939578,1.6739,2747.1,2747.0,0.00308637]
[1724649940695,1.31,2747.1,2747.0,0.00308637]
[1724649941288,1.6739,2747.1,2747.0,0.00308637]
[1724649941589,5.6794,2747.1,2747.0,0.00308637]
[1724649941790,1.31,2746.4,2746.3,0.38]
[1724649942214,1.31,2746.4,2746.3,4.3848]
[1724649942508,0.00545663,2746.6,2746.5,0.36397]
[1724649942793,0.376,2747.2,2747.0,1.31]
[1724649942993,0.376,2747.2,2747.1,0.3784]
[1724649943587,1.67931663,2747.4,2747.1,0.3784]
[1724649943787,2.03081663,2747.4,2747.1,0.3784]
[1724649943992,1.66695663,2747.4,2747.1,0.3784]
[1724649944596,2.03081663,2747.4,2747.1,0.3784]
[1724649946494,1.31,2747.3,2747.1,0.3784]
[1724649947788,0.72081663,2747.4,2747.1,0.3784]
[1724649947789,0.36388,2747.2,2747.1,0.3784]
[1724649947982,1.67388,2747.2,2747.1,0.3784]
[1724649948185,1.31,2747.2,2746.9,0.00545663]
[1724649948391,1.31,2747.0,2746.9,0.36945663]
[1724649948792,1.31,2747.0,2746.9,4.01025663]
[1724649949096,1.31,2747.0,2746.9,0.00545663]
[1724649949334,1.31,2747.0,2746.9,3.64625663]
[1724649950292,1.6935,2747.0,2746.9,0.00545663]
[1724649951995,2.05741,2747.0,2746.9,0.00545663]
[1724649952297,1.6935,2747.0,2746.9,0.00545663]
[1724649952495,1.6739,2747.1,2746.9,0.00545663]
[1724649955901,0.359,2747.3,2746.9,3.64545663]
[1724649956101,1.669,2747.3,2747.0,0.7129]
[1724649956303,0.359,2747.3,2747.1,1.31]
[1724649956503,0.00545663,2747.4,2747.2,0.36388]
[1724649956807,1.31545663,2747.4,2747.1,3.93859]
[1724649957006,1.31,2747.2,2747.1,0.3669]
[1724649959707,1.683,2747.3,2747.1,0.3669]
[1724649960614,1.683,2747.3,2746.9,1.67937663]
[1724649960819,1.6609,2747.2,2746.9,0.36937663]
[1724649961308,1.6609,2747.2,2746.9,0.73357663]
[1724649961503,2.02478,2747.2,2746.9,0.36965663]
[1724649962410,2.04688,2747.3,2746.9,2.04357663]
[1724649962615,0.73688,2747.3,2746.9,2.04357663]
[1724649963006,2.04688,2747.3,2746.9,2.04357663]
[1724649963207,2.04688,2747.3,2746.9,1.67965663]
[1724649963408,2.04688,2747.3,2746.9,2.04357663]
[1724649963614,2.04688,2747.3,2746.9,1.67965663]
[1724649964117,2.04688,2747.3,2746.9,2.04357663]
[1724649965425,2.04687,2747.3,2746.9,2.04356663]
[1724649968128,2.04687,2747.3,2746.9,0.36965663]
[1724649968129,1.67388,2747.2,2746.9,0.36965663]
[1724649968430,0.3611,2747.1,2746.9,0.36965663]
[1724649968929,0.3743,2747.0,2746.9,0.36965663]
[1724649969132,2.04821,2747.0,2746.9,0.00545663]
[1724649969328,6.59879,2747.0,2746.9,0.00545663]
[1724649970128,6.59879,2747.0,2746.5,0.00328681]
[1724649970129,1.31,2746.6,2746.5,0.00328681]
[1724649970429,1.67396,2746.6,2746.5,0.00328681]
[1724649970633,1.31,2746.6,2746.5,0.00328681]
[1724649971136,1.6596,2746.6,2746.5,0.00328681]
[1724649971324,2.011,2746.6,2746.5,0.00328681]
[1724649971721,2.37496,2746.6,2746.5,0.00328681]
[1724649974627,1.06496,2746.6,2746.5,0.00328681]
[1724649974832,2.37496,2746.6,2746.5,0.00328681]
[1724649978933,0.36402,2746.2,2745.9,4.1609971]
[1724649979235,0.36402,2746.2,2745.6,0.36409]
[1724649979236,2.03803,2746.1,2745.6,0.36409]
[1724649979432,1.31,2745.9,2745.6,0.36409]
[1724649979623,0.00545663,2746.0,2745.4,3.2078]
[1724649979826,1.31,2745.8,2745.7,0.36407]
[1724649980020,1.31430143,2745.8,2745.7,0.36699796]
[1724649980432,0.00545663,2746.0,2745.9,0.36405]
[1724649980629,0.00545663,2746.0,2745.9,4.00565]
[1724649981428,0.00545663,2746.0,2745.9,5.31565]
[1724649981632,0.0100197,2746.0,2745.9,5.31565]
[1724649992136,0.3639,2747.1,2746.0,0.91011]
[1724649992372,3.2078,2747.2,2746.9,1.31]
[1724649992547,3.2078,2747.2,2747.1,1.31]
[1724649992735,3.57168,2747.2,2747.1,1.31]
[1724649993134,4.88578016,2747.2,2747.0,0.719]
[1724649993647,3.21190016,2747.2,2747.0,2.029]
[1724649993850,3.21190016,2747.2,2747.0,2.39291]
[1724649994041,3.21190016,2747.2,2747.0,2.029]
[1724649994240,3.57578016,2747.2,2747.0,0.719]
[1724649994445,3.21190016,2747.2,2747.0,0.719]
[1724649997249,3.57578016,2747.2,2747.0,0.719]
[1724649998149,3.21190016,2747.2,2747.0,0.719]
[1724649998367,3.57578016,2747.2,2747.0,0.719]
[1724649998755,3.21190016,2747.2,2747.0,0.719]
[1724649999952,3.57579016,2747.2,2747.0,0.719]
[1724650001257,0.36799016,2747.2,2747.0,0.719]
[1724650004546,0.00410016,2747.2,2747.0,0.719]
[1724650006649,0.00410016,2747.2,2746.9,0.36936663]
[1724650008256,0.36798016,2747.2,2746.9,0.36936663]
[1724650009456,0.00410016,2747.2,2747.0,0.36391]
[1724650009653,0.00410016,2747.2,2746.9,0.00545663]
[1724650009962,0.36798016,2747.2,2746.9,0.36936663]
[1724650010959,0.36798016,2747.2,2746.9,0.00545663]
[1724650010960,0.00410016,2747.2,2746.9,0.00545663]
[1724650011273,0.36798016,2747.2,2746.9,0.36937663]
[1724650015066,0.3639,2747.1,2746.9,0.36937663]
[1724650015453,0.3835,2747.0,2746.9,0.36937663]
[1724650016065,0.3835,2747.0,2746.9,4.01017663]
[1724650016263,6.60799,2747.0,2746.9,0.00545663]
[1724650016455,0.36397,2746.5,2746.4,4.195]
[1724650016764,1.31,2746.5,2746.2,3.2078]
[1724650017064,0.90993,2746.6,2746.2,3.2078]
[1724650017065,1.674,2746.3,2746.2,3.2078]
[1724650018271,1.31,2746.3,2746.2,3.2078]
[1724650018569,1.31,2746.3,2746.1,0.36403]
[1724650018765,2.4194,2746.4,2746.1,1.67403]
[1724650019063,1.31,2746.2,2745.9,3.57185]
[1724650019256,1.31,2746.2,2745.9,4.88185]
[1724650020260,1.67401,2746.3,2745.9,4.88185]
[1724650020468,1.67401,2746.3,2746.0,0.36404]
[1724650020774,0.36405,2746.0,2745.7,0.00292796]
[1724650020954,4.86318,2746.4,2745.7,0.00292796]
[1724650020955,1.31,2745.8,2745.7,0.00292796]
[1724650021150,0.7129,2745.9,2745.7,0.00292796]
[1724650021355,2.38696,2745.9,2745.7,0.00292796]
[1724650021553,1.67407,2745.8,2745.7,0.00292796]
[1724650021757,1.31,2745.8,2745.7,0.00292796]
[1724650021965,1.07696,2745.9,2745.7,0.00292796]
[1724650022365,0.36407,2745.8,2745.7,0.00292796]
[1724650022758,0.36407,2745.8,2745.0,5.1481971]
[1724650022759,0.36413,2745.4,2745.0,0.36417]
[1724650022959,0.36413,2745.4,2744.6,10.0978]
[1724650022960,0.72444,2745.3,2744.8,0.36419]
[1724650023158,3.2078,2745.2,2744.7,0.3726]
[1724650023353,3.2078,2745.2,2744.8,0.3642]
[1724650023564,3.57195,2745.2,2744.8,0.3642]
[1724650023764,3.21036545,2745.2,2744.8,0.36768302]
[1724650023968,3.57451545,2745.2,2744.8,0.36768302]
[1724650024362,3.21036545,2745.2,2744.8,0.00348302]
[1724650024766,0.36417,2745.1,2744.8,0.00348302]
[1724650025969,3.56986545,2745.2,2744.8,0.00348302]
[1724650026270,0.36419,2744.9,2744.8,0.00348302]
[1724650028070,3.57199,2744.9,2744.8,0.00348302]
[1724650030367,3.57199,2744.9,2744.0,4.195]
[1724650030368,0.36424,2744.6,2744.0,4.195]
[1724650030575,0.366,2744.5,2743.8,0.7479]
[1724650030763,0.366,2744.5,2744.3,0.36426]
[1724650031275,0.366,2744.5,2744.3,0.36792899]
[1724650032260,0.366,2744.5,2744.3,0.00366899]
[1724650032776,0.7494,2744.5,2744.3,0.00366899]
[1724650032961,1.11364,2744.5,2744.3,0.00366899]
[1724650033373,0.7494,2744.5,2744.3,0.00366899]
[1724650034265,1.11364,2744.5,2744.3,0.00366899]
[1724650034977,0.7494,2744.5,2744.3,0.00366899]
[1724650035167,1.11364,2744.5,2744.3,0.00366899]
[1724650036178,0.7494,2744.5,2744.3,0.00366899]
[1724650036373,3.57205,2744.4,2744.3,0.00366899]
[1724650036582,3.57205,2744.4,2743.8,0.73622]
[1724650036583,7.76244,2744.4,2743.6,4.195]
[1724650036767,0.36432,2743.9,2743.4,3.57217]
[1724650036968,0.73953,2743.8,2743.4,0.36437]
[1724650037167,0.3752,2743.8,2743.3,0.3572]
[1724650037371,0.3752,2743.8,2743.3,0.3644]
[1724650037586,0.73954,2743.8,2743.3,0.36695039]
[1724650038276,3.2078,2743.4,2743.3,0.00255039]
[1724650041176,3.2078,2743.8,2743.3,3.64735039]
[1724650041370,0.3818,2744.1,2743.7,0.36433]
[1724650041596,0.3818,2744.1,2743.6,0.36435]
[1724650041879,0.3818,2744.1,2743.4,0.737]
[1724650042067,0.36431,2744.0,2743.4,1.10138]
[1724650042769,0.3818,2744.1,2743.4,0.737]
[1724650042968,0.3818,2744.1,2743.3,0.00255039]
[1724650043173,0.36433,2743.8,2743.3,0.00255039]
[1724650043374,0.36435,2743.7,2743.3,0.00255039]
[1724650043568,0.3855,2743.6,2743.3,0.00255039]
[1724650046374,0.74986,2743.6,2743.3,0.00255039]
[1724650046574,0.74987,2743.6,2743.3,0.00255039]
[1724650047175,3.5355,2743.6,2743.3,0.00255039]
[1724650047375,0.36438,2743.5,2743.3,0.00255039]
[1724650047679,0.3855,2743.6,2743.3,0.00255039]
[1724650051080,0.36439,2743.4,2743.3,0.00255039]
[1724650051284,7.21699,2743.4,2743.3,0.00255039]
[1724650052282,6.8526,2743.4,2743.3,0.00255039]
[1724650052777,3.2078,2743.4,2743.3,0.00255039]
[1724650053080,6.8526,2743.4,2743.3,0.00255039]
[1724650053576,3.2078,2743.4,2743.3,0.00255039]
[1724650054388,6.8526,2743.4,2743.3,0.00255039]
[1724650055978,7.21699,2743.4,2743.3,0.00255039]
[1724650056879,4.00919,2743.4,2743.3,0.00255039]
[1724650057083,6.8526,2743.4,2743.3,0.00255039]
[1724650058189,7.21699,2743.4,2743.3,0.00255039]
[1724650059379,12.21699,2743.4,2743.3,0.00255039]
[1724650059877,6.8526,2743.4,2743.3,0.00255039]
[1724650060684,3.2078,2743.4,2743.3,0.00255039]
[1724650062891,0.3855,2743.6,2743.3,0.00255039]
[1724650063580,3.5933,2743.6,2743.3,0.00255039]
[1724650064489,3.95766,2743.6,2743.3,0.00255039]
[1724650064690,3.5933,2743.6,2743.3,0.00255039]
[1724650064888,3.95766,2743.6,2743.3,0.00255039]
[1724650065088,3.5933,2743.6,2743.3,0.00255039]
[1724650066394,3.95766,2743.6,2743.3,0.00255039]
[1724650066793,3.5933,2743.6,2743.3,0.00255039]
[1724650069492,3.95766,2743.6,2743.3,0.00255039]
[1724650070097,1.31,2743.4,2743.3,0.00255039]
[1724650072590,4.5178,2743.4,2743.3,0.00255039]
[1724650072996,1.31,2743.4,2743.3,0.00255039]
[1724650073190,4.5178,2743.4,2743.3,0.00255039]
[1724650075090,1.31,2743.4,2743.3,0.00255039]
[1724650075698,0.91067,2744.4,2743.3,6.85515039]
[1724650075699,3.2078,2744.0,2743.3,6.85515039]
[1724650075897,1.31,2743.9,2743.5,0.36437]
[1724650076102,1.31,2743.9,2743.6,0.3738]
[1724650076295,1.31,2743.7,2743.6,0.3738]
[1724650077990,3.93311,2744.0,2743.6,0.3738]
[1724650078602,3.5688,2744.0,2743.6,0.3738]
[1724650078796,3.5688,2744.0,2743.7,0.36435]
[1724650079294,3.5688,2744.0,2743.6,0.3738]
[1724650079498,3.5688,2744.0,2743.7,0.36434]
[1724650079801,3.5688,2744.0,2743.6,0.73815]
[1724650080503,3.5688,2744.0,2743.6,0.3738]
[1724650080903,0.36433,2743.9,2743.4,1.68040248]
[1724650081091,0.36433,2743.9,2743.4,0.3724]
[1724650081293,0.36433,2743.9,2743.4,0.73678]
[1724650081501,0.36433,2743.9,2743.4,0.3724]
[1724650081803,0.36433,2743.9,2743.4,0.73677]
[1724650082004,3.5688,2744.0,2743.4,0.3724]
[1724650082005,0.36434,2743.8,2743.4,0.3724]
[1724650082198,0.3678,2743.7,2743.4,0.3724]
[1724650082508,0.73215,2743.7,2743.4,0.3724]
[1724650082807,0.3532,2743.6,2743.4,0.3724]
[1724650083192,0.3532,2743.6,2743.3,4.15397287]
[1724650083395,3.2078,2743.4,2743.3,0.00255039]
[1724650083706,3.57219,2743.4,2743.3,0.00255039]
[1724650084008,7.21699,2743.4,2743.3,0.00255039]
[1724650085102,4.00919,2743.4,2743.3,0.00255039]
[1724650085304,7.21699,2743.4,2743.3,0.00255039]
[1724650085710,6.8526,2743.4,2743.3,0.00255039]
[1724650089905,7.21699,2743.4,2743.3,0.00255039]
[1724650098516,3.57219,2743.4,2743.3,0.00255039]
[1724650098712,7.21699,2743.4,2743.3,0.00255039]
[1724650100012,8.52699,2743.4,2743.3,0.00255039]
[1724650100918,0.3532,2743.6,2743.3,1.31255039]
[1724650101120,0.3532,2743.6,2743.5,0.36437]